[Event "Titled Tuesday Blitz May 9 Late 2023"]
[White "Olsson, William"]
[Black "Krzyzanowski, Marcin"]
[WhiteFideId "1741721"]
[BlackFideId "1132199"]
[WhiteElo "2197"]
[BlackElo "2471"]
[Result "0-1"]
[Round "01"]
[TimeControl "180+2"]
[Date "2023.05.09"]
[WhiteClock "0:00:07"]
[BlackClock "0:01:53"]

1. c4 {[%clk 0:03:00]}  e5 {[%clk 0:02:57]} 2. g3 {[%clk 0:03:01]}  Nf6 {[%clk 0:02:56]} 3. Bg2 {[%clk 0:03:01]}  d5 {[%clk 0:02:57]} 4. cxd5 {[%clk 0:03:02]}  Nxd5 {[%clk 0:02:57]} 5. Nf3 {[%clk 0:03:02]}  Nc6 {[%clk 0:02:56]} 6. O-O {[%clk 0:03:03]}  Nb6 {[%clk 0:02:57]} 7. b3 {[%clk 0:02:59]}  Be7 {[%clk 0:02:55]} 8. Bb2 {[%clk 0:02:59]}  Bf6 {[%clk 0:02:55]} 9. Nc3 {[%clk 0:02:52]}  O-O {[%clk 0:02:55]} 10. Ne4 {[%clk 0:02:48]}  Bf5 {[%clk 0:02:54]} 11. Nxf6+ {[%clk 0:02:47]}  Qxf6 {[%clk 0:02:55]} 12. d4 {[%clk 0:02:37]}  e4 {[%clk 0:02:48]} 13. Nd2 {[%clk 0:01:44]}  Rfe8 {[%clk 0:02:46]} 14. e3 {[%clk 0:01:44]}  Nd5 {[%clk 0:02:43]} 15. a3 {[%clk 0:01:43]}  Qg6 {[%clk 0:02:41]} 16. Qc2 {[%clk 0:01:42]}  h5 {[%clk 0:02:38]} 17. b4 {[%clk 0:01:35]}  a6 {[%clk 0:02:32]} 18. Rac1 {[%clk 0:01:29]}  h4 {[%clk 0:02:32]} 19. Qb3 {[%clk 0:01:29]}  Rad8 {[%clk 0:02:30]} 20. Rc5 {[%clk 0:01:28]}  Nce7 {[%clk 0:02:30]} 21. Nc4 {[%clk 0:01:24]}  b6 {[%clk 0:02:10]} 22. Ne5 {[%clk 0:01:24]}  Qh5 {[%clk 0:02:05]} 23. Rc2 {[%clk 0:01:17]}  Rd6 {[%clk 0:02:05]} 24. Rd2 {[%clk 0:00:33]}  Rh6 {[%clk 0:02:02]} 25. Qd1 {[%clk 0:00:31]}  Qg5 {[%clk 0:01:55]} 26. g4 {[%clk 0:00:28]}  h3 {[%clk 0:01:55]} 27. Bh1 {[%clk 0:00:20]}  f6 {[%clk 0:01:55]} 28. f4 {[%clk 0:00:07]}  exf3 {[%clk 0:01:53]} 0-1


[Site "https://www.chess.com"]

[Event "Titled Tuesday Blitz May 9 Late 2023"]
[White "Balla, Tamas-Kristof"]
[Black "Yanchenko, Roman"]
[WhiteFideId "1208497"]
[BlackFideId "4137329"]
[WhiteElo "2334"]
[BlackElo "2491"]
[Result "0-1"]
[Round "01"]
[TimeControl "180+2"]
[Date "2023.05.09"]
[WhiteClock "0:00:13"]
[BlackClock "0:01:00"]

1. d4 {[%clk 0:02:57]}  d5 {[%clk 0:02:59]} 2. Nc3 {[%clk 0:02:57]}  Nf6 {[%clk 0:02:59]} 3. Bf4 {[%clk 0:02:57]}  Bf5 {[%clk 0:02:58]} 4. e3 {[%clk 0:02:51]}  e6 {[%clk 0:02:58]} 5. Nb5 {[%clk 0:02:46]}  Na6 {[%clk 0:02:55]} 6. Bd3 {[%clk 0:02:30]}  c6 {[%clk 0:02:44]} 7. Nc3 {[%clk 0:02:21]}  Qa5 {[%clk 0:02:43]} 8. Bxf5 {[%clk 0:02:11]}  exf5 {[%clk 0:02:42]} 9. Ne2 {[%clk 0:02:12]}  Be7 {[%clk 0:02:38]} 10. O-O {[%clk 0:02:11]}  O-O {[%clk 0:02:38]} 11. a3 {[%clk 0:02:11]}  Qd8 {[%clk 0:02:35]} 12. Qd3 {[%clk 0:02:09]}  g6 {[%clk 0:02:34]} 13. f3 {[%clk 0:01:55]}  Nc7 {[%clk 0:02:34]} 14. e4 {[%clk 0:01:46]}  dxe4 {[%clk 0:02:28]} 15. fxe4 {[%clk 0:01:47]}  fxe4 {[%clk 0:02:28]} 16. Nxe4 {[%clk 0:01:47]}  Nxe4 {[%clk 0:02:28]} 17. Qxe4 {[%clk 0:01:46]}  Ne6 {[%clk 0:02:27]} 18. Bh6 {[%clk 0:01:43]}  Re8 {[%clk 0:02:27]} 19. Qf3 {[%clk 0:01:36]}  f5 {[%clk 0:02:19]} 20. Rad1 {[%clk 0:01:31]}  Qd5 {[%clk 0:02:16]} 21. Qd3 {[%clk 0:00:49]}  Rad8 {[%clk 0:02:06]} 22. c4 {[%clk 0:00:49]}  Qd7 {[%clk 0:02:06]} 23. Qb3 {[%clk 0:00:46]}  Bg5 {[%clk 0:02:01]} 24. Bxg5 {[%clk 0:00:38]}  Nxg5 {[%clk 0:02:02]} 25. d5 {[%clk 0:00:36]}  Rxe2 {[%clk 0:02:00]} 26. dxc6 {[%clk 0:00:34]}  Qc7 {[%clk 0:01:38]} 27. Rxd8+ {[%clk 0:00:32]}  Qxd8 {[%clk 0:01:38]} 28. cxb7 {[%clk 0:00:32]}  Re8 {[%clk 0:01:38]} 29. c5+ {[%clk 0:00:29]}  Kg7 {[%clk 0:01:22]} 30. Qc3+ {[%clk 0:00:25]}  Kh6 {[%clk 0:01:20]} 31. c6 {[%clk 0:00:25]}  Qb6+ {[%clk 0:01:17]} 32. Kh1 {[%clk 0:00:22]}  Ne4 {[%clk 0:01:17]} 33. Qc1+ {[%clk 0:00:20]}  Kg7 {[%clk 0:01:17]} 34. g3 {[%clk 0:00:16]}  Re6 {[%clk 0:00:56]} 35. c7 {[%clk 0:00:14]}  Qxb7 {[%clk 0:00:57]} 36. c8=Q {[%clk 0:00:13]}  Nf2+ {[%clk 0:00:56]} 37. Kg1 {[%clk 0:00:13]}  Qh1+ {[%clk 0:00:57]} 38. Kxf2 {[%clk 0:00:13]}  Qxh2+ {[%clk 0:00:58]} 39. Kf3 {[%clk 0:00:13]}  Qe2+ {[%clk 0:00:59]} 40. Kf4 {[%clk 0:00:13]}  Qg4# {[%clk 0:01:00]} 0-1


[Site "https://www.chess.com"]

[Event "Titled Tuesday Blitz May 9 Late 2023"]
[White "KVAIDAN"]
[Black "Gorshtein, Ido"]
[BlackFideId "2815532"]
[WhiteElo "2401"]
[BlackElo "2415"]
[Result "0-1"]
[Round "01"]
[TimeControl "180+2"]
[Date "2023.05.09"]
[WhiteClock "0:01:40"]
[BlackClock "0:00:57"]

1. f4 {[%clk 0:02:59]}  Nf6 {[%clk 0:02:57]} 2. Nf3 {[%clk 0:02:59]}  d6 {[%clk 0:02:55]} 3. e3 {[%clk 0:02:59]}  g6 {[%clk 0:02:55]} 4. d3 {[%clk 0:03:00]}  Bg7 {[%clk 0:02:56]} 5. Be2 {[%clk 0:03:00]}  O-O {[%clk 0:02:56]} 6. O-O {[%clk 0:03:00]}  b6 {[%clk 0:02:57]} 7. Nc3 {[%clk 0:03:00]}  Bb7 {[%clk 0:02:57]} 8. e4 {[%clk 0:03:00]}  Nbd7 {[%clk 0:02:58]} 9. Qe1 {[%clk 0:03:00]}  e5 {[%clk 0:02:54]} 10. Qh4 {[%clk 0:03:00]}  a6 {[%clk 0:02:40]} 11. f5 {[%clk 0:03:00]}  d5 {[%clk 0:02:39]} 12. Bg5 {[%clk 0:03:00]}  dxe4 {[%clk 0:02:34]} 13. Nxe4 {[%clk 0:03:00]}  Bxe4 {[%clk 0:02:33]} 14. dxe4 {[%clk 0:03:00]}  Qe7 {[%clk 0:02:33]} 15. Rad1 {[%clk 0:03:00]}  Qc5+ {[%clk 0:02:28]} 16. Kh1 {[%clk 0:02:58]}  Qxc2 {[%clk 0:02:28]} 17. Rd2 {[%clk 0:02:55]}  Qc6 {[%clk 0:02:22]} 18. Rfd1 {[%clk 0:02:47]}  Rfe8 {[%clk 0:02:15]} 19. fxg6 {[%clk 0:02:44]}  hxg6 {[%clk 0:02:15]} 20. b3 {[%clk 0:02:38]}  Nc5 {[%clk 0:02:13]} 21. Bc4 {[%clk 0:02:34]}  Ncxe4 {[%clk 0:02:08]} 22. Bxf6 {[%clk 0:02:31]}  Nxf6 {[%clk 0:01:46]} 23. Ng5 {[%clk 0:02:31]}  Rf8 {[%clk 0:01:38]} 24. Bd5 {[%clk 0:02:29]}  Qe8 {[%clk 0:01:33]} 25. Bxa8 {[%clk 0:02:26]}  Qxa8 {[%clk 0:01:34]} 26. Rf2 {[%clk 0:02:25]}  Nh5 {[%clk 0:01:34]} 27. Rd7 {[%clk 0:02:19]}  Qc6 {[%clk 0:01:32]} 28. Rfd2 {[%clk 0:02:14]}  Bf6 {[%clk 0:01:26]} 29. Qg4 {[%clk 0:02:06]}  Bxg5 {[%clk 0:01:23]} 30. h4 {[%clk 0:02:01]}  Bxd2 {[%clk 0:01:21]} 31. Rxd2 {[%clk 0:02:00]}  Nf4 {[%clk 0:01:20]} 32. Kh2 {[%clk 0:01:58]}  Qf6 {[%clk 0:01:16]} 33. Rf2 {[%clk 0:01:56]}  Qe6 {[%clk 0:01:16]} 34. Qg5 {[%clk 0:01:55]}  Re8 {[%clk 0:01:14]} 35. g3 {[%clk 0:01:51]}  Nh5 {[%clk 0:01:14]} 36. g4 {[%clk 0:01:51]}  Ng7 {[%clk 0:01:13]} 37. h5 {[%clk 0:01:51]}  e4 {[%clk 0:01:06]} 38. h6 {[%clk 0:01:49]}  e3 {[%clk 0:01:03]} 39. Re2 {[%clk 0:01:47]}  Qd6+ {[%clk 0:01:03]} 40. Kh3 {[%clk 0:01:46]}  Ne6 {[%clk 0:01:03]} 41. Qxe3 {[%clk 0:01:43]}  Nf4+ {[%clk 0:01:01]} 42. Qxf4 {[%clk 0:01:44]}  Qxf4 {[%clk 0:00:57]} 43. Rxe8+ {[%clk 0:01:40]}  Kh7 {[%clk 0:00:57]} 0-1


[Site "https://www.chess.com"]

[Event "Titled Tuesday Blitz May 9 Late 2023"]
[White "Harshavardhan G B"]
[Black "Fernandez Siles, Luis"]
[WhiteFideId "25059009"]
[BlackFideId "2209420"]
[WhiteElo "2323"]
[BlackElo "2195"]
[Result "1-0"]
[Round "01"]
[TimeControl "180+2"]
[Date "2023.05.09"]
[WhiteClock "0:00:20"]
[BlackClock "0:00:00"]

1. e4 {[%clk 0:03:00]}  c5 {[%clk 0:02:58]} 2. Nc3 {[%clk 0:02:56]}  Nc6 {[%clk 0:02:57]} 3. g3 {[%clk 0:02:54]}  g6 {[%clk 0:02:57]} 4. Bg2 {[%clk 0:02:54]}  Bg7 {[%clk 0:02:57]} 5. Nge2 {[%clk 0:02:55]}  d6 {[%clk 0:02:52]} 6. O-O {[%clk 0:02:52]}  Nf6 {[%clk 0:02:51]} 7. f4 {[%clk 0:02:53]}  Bg4 {[%clk 0:02:50]} 8. h3 {[%clk 0:02:52]}  Bxe2 {[%clk 0:02:50]} 9. Nxe2 {[%clk 0:02:53]}  O-O {[%clk 0:02:48]} 10. d3 {[%clk 0:02:53]}  Rb8 {[%clk 0:02:46]} 11. Be3 {[%clk 0:02:53]}  Nd7 {[%clk 0:02:45]} 12. Rb1 {[%clk 0:02:52]}  Nd4 {[%clk 0:02:41]} 13. g4 {[%clk 0:02:52]}  b5 {[%clk 0:02:40]} 14. Ng3 {[%clk 0:02:52]}  b4 {[%clk 0:02:36]} 15. Kh2 {[%clk 0:02:50]}  e6 {[%clk 0:02:33]} 16. f5 {[%clk 0:02:47]}  Ne5 {[%clk 0:02:24]} 17. Bxd4 {[%clk 0:02:15]}  cxd4 {[%clk 0:02:19]} 18. Qd2 {[%clk 0:02:15]}  Nxg4+ {[%clk 0:02:11]} 19. hxg4 {[%clk 0:02:15]}  Qh4+ {[%clk 0:02:10]} 20. Bh3 {[%clk 0:02:15]}  Be5 {[%clk 0:02:05]} 21. Qg2 {[%clk 0:02:15]}  Rbc8 {[%clk 0:01:59]} 22. Rf2 {[%clk 0:02:15]}  h5 {[%clk 0:01:45]} 23. gxh5 {[%clk 0:02:05]}  gxf5 {[%clk 0:01:45]} 24. exf5 {[%clk 0:02:04]}  Kh8 {[%clk 0:01:44]} 25. Rg1 {[%clk 0:01:52]}  Rg8 {[%clk 0:01:43]} 26. Rf3 {[%clk 0:01:50]}  Rxg3 {[%clk 0:01:32]} 27. Rxg3 {[%clk 0:01:49]}  Rg8 {[%clk 0:01:32]} 28. Qf3 {[%clk 0:01:24]}  exf5 {[%clk 0:01:19]} 29. Rg2 {[%clk 0:01:01]}  Rg4 {[%clk 0:01:04]} 30. h6 {[%clk 0:00:43]}  a5 {[%clk 0:00:56]} 31. a4 {[%clk 0:00:33]}  Rg6 {[%clk 0:00:35]} 32. b3 {[%clk 0:00:27]}  Rg4 {[%clk 0:00:35]} 33. Kg1 {[%clk 0:00:21]}  Rxg3 {[%clk 0:00:30]} 34. Rxg3 {[%clk 0:00:18]}  Qxg3+ {[%clk 0:00:23]} 35. Qxg3 {[%clk 0:00:18]}  Bxg3 {[%clk 0:00:23]} 36. Bxf5 {[%clk 0:00:19]}  Bf4 {[%clk 0:00:21]} 37. h7 {[%clk 0:00:19]}  Bd2 {[%clk 0:00:21]} 38. Kg2 {[%clk 0:00:19]}  Bc3 {[%clk 0:00:21]} 39. Kf3 {[%clk 0:00:20]}  Kg7 {[%clk 0:00:21]} 40. Ke4 {[%clk 0:00:20]}  Bd2 {[%clk 0:00:06]} 41. Kxd4 {[%clk 0:00:20]}  Bf4 {[%clk 0:00:07]} 42. Kc4 {[%clk 0:00:20]}  Be5 {[%clk 0:00:07]} 43. Kb5 {[%clk 0:00:20]}  Kh6 {[%clk 0:00:06]} 44. Kxa5 {[%clk 0:00:20]}  Kg5 {[%clk 0:00:07]} 45. Be4 {[%clk 0:00:20]}  f5 {[%clk 0:00:06]} 46. Bd5 {[%clk 0:00:21]}  Kg6 {[%clk 0:00:03]} 47. Kxb4 {[%clk 0:00:20]}  Kxh7 {[%clk 0:00:03]} 48. c3 {[%clk 0:00:20]}  f4 {[%clk 0:00:03]} 49. d4 {[%clk 0:00:20]}  Bf6 {[%clk 0:00:00]} 50. a5 {[%clk 0:00:20]} 1-0


[Site "https://www.chess.com"]

[Event "Titled Tuesday Blitz May 9 Late 2023"]
[White "Prohaszka, Peter"]
[Black "Abduzhaparov"]
[WhiteFideId "726265"]
[WhiteElo "2626"]
[BlackElo "2383"]
[Result "1-0"]
[Round "01"]
[TimeControl "180+2"]
[Date "2023.05.09"]
[WhiteClock "0:00:16"]
[BlackClock "0:00:02"]

1. d4 {[%clk 0:02:59]}  d6 {[%clk 0:03:00]} 2. Nf3 {[%clk 0:02:59]}  Nf6 {[%clk 0:03:01]} 3. c4 {[%clk 0:02:59]}  Nbd7 {[%clk 0:03:02]} 4. Nc3 {[%clk 0:02:59]}  e5 {[%clk 0:03:02]} 5. e4 {[%clk 0:03:00]}  Be7 {[%clk 0:03:02]} 6. Be2 {[%clk 0:03:00]}  O-O {[%clk 0:03:02]} 7. Be3 {[%clk 0:03:01]}  exd4 {[%clk 0:03:02]} 8. Nxd4 {[%clk 0:03:00]}  Re8 {[%clk 0:03:02]} 9. O-O {[%clk 0:03:00]}  Bf8 {[%clk 0:03:02]} 10. f3 {[%clk 0:03:00]}  c6 {[%clk 0:03:01]} 11. Bf2 {[%clk 0:02:58]}  a5 {[%clk 0:03:01]} 12. Qd2 {[%clk 0:02:57]}  Nc5 {[%clk 0:03:01]} 13. Rad1 {[%clk 0:02:57]}  Qc7 {[%clk 0:03:00]} 14. Bg3 {[%clk 0:02:55]}  Qb6 {[%clk 0:02:57]} 15. Kh1 {[%clk 0:02:55]}  Bd7 {[%clk 0:02:52]} 16. Rb1 {[%clk 0:02:47]}  Rad8 {[%clk 0:02:51]} 17. Rfd1 {[%clk 0:02:40]}  Bc8 {[%clk 0:02:51]} 18. b3 {[%clk 0:02:40]}  g6 {[%clk 0:02:49]} 19. a3 {[%clk 0:02:39]}  Bg7 {[%clk 0:02:46]} 20. b4 {[%clk 0:02:39]}  axb4 {[%clk 0:02:46]} 21. axb4 {[%clk 0:02:40]}  Nh5 {[%clk 0:02:30]} 22. bxc5 {[%clk 0:02:36]}  Nxg3+ {[%clk 0:02:21]} 23. hxg3 {[%clk 0:02:37]}  Qxc5 {[%clk 0:02:17]} 24. g4 {[%clk 0:02:31]}  d5 {[%clk 0:02:14]} 25. cxd5 {[%clk 0:02:26]}  cxd5 {[%clk 0:02:14]} 26. Nxd5 {[%clk 0:02:26]}  Be6 {[%clk 0:02:09]} 27. Rbc1 {[%clk 0:01:57]}  Qd6 {[%clk 0:02:03]} 28. Bb5 {[%clk 0:01:33]}  Rf8 {[%clk 0:01:45]} 29. Ne2 {[%clk 0:01:23]}  Bxd5 {[%clk 0:01:39]} 30. exd5 {[%clk 0:01:11]}  Qe7 {[%clk 0:01:39]} 31. g3 {[%clk 0:01:04]}  Qe5 {[%clk 0:01:25]} 32. Kg2 {[%clk 0:01:01]}  f5 {[%clk 0:01:18]} 33. g5 {[%clk 0:00:58]}  Rf7 {[%clk 0:01:06]} 34. Nf4 {[%clk 0:00:56]}  Qd6 {[%clk 0:00:54]} 35. Ne6 {[%clk 0:00:50]}  Ra8 {[%clk 0:00:42]} 36. Nxg7 {[%clk 0:00:50]}  Rxg7 {[%clk 0:00:43]} 37. Rc2 {[%clk 0:00:47]}  Re7 {[%clk 0:00:36]} 38. Qf4 {[%clk 0:00:37]}  Qb6 {[%clk 0:00:28]} 39. d6 {[%clk 0:00:30]}  Rg7 {[%clk 0:00:23]} 40. d7 {[%clk 0:00:25]}  Rd8 {[%clk 0:00:18]} 41. Rc8 {[%clk 0:00:20]}  Re7 {[%clk 0:00:06]} 42. Qc4+ {[%clk 0:00:16]}  Kf8 {[%clk 0:00:04]} 43. Rxd8+ {[%clk 0:00:16]}  Qxd8 {[%clk 0:00:02]} 44. Qc8 {[%clk 0:00:16]} 1-0


[Site "https://www.chess.com"]

[Event "Titled Tuesday Blitz May 9 Late 2023"]
[White "Kalajzic, Ivan"]
[Black "Bolourchifard, Farzad"]
[WhiteFideId "14506378"]
[BlackFideId "12510084"]
[WhiteElo "2203"]
[BlackElo "2317"]
[Result "0-1"]
[Round "01"]
[TimeControl "180+2"]
[Date "2023.05.09"]
[WhiteClock "0:00:37"]
[BlackClock "0:01:04"]

1. d4 {[%clk 0:02:44]}  Nf6 {[%clk 0:02:59]} 2. Nc3 {[%clk 0:02:41]}  d5 {[%clk 0:02:58]} 3. Bg5 {[%clk 0:02:40]}  e6 {[%clk 0:02:53]} 4. e4 {[%clk 0:02:37]}  Be7 {[%clk 0:02:51]} 5. e5 {[%clk 0:02:37]}  Nfd7 {[%clk 0:02:51]} 6. h4 {[%clk 0:02:37]}  a6 {[%clk 0:02:44]} 7. Qg4 {[%clk 0:02:36]}  Kf8 {[%clk 0:02:43]} 8. Nf3 {[%clk 0:02:30]}  h6 {[%clk 0:02:42]} 9. Bxe7+ {[%clk 0:02:28]}  Qxe7 {[%clk 0:02:43]} 10. Bd3 {[%clk 0:02:26]}  c5 {[%clk 0:02:43]} 11. dxc5 {[%clk 0:02:21]}  Nxc5 {[%clk 0:02:42]} 12. O-O-O {[%clk 0:02:20]}  Nc6 {[%clk 0:02:41]} 13. h5 {[%clk 0:02:10]}  b5 {[%clk 0:02:36]} 14. Rh3 {[%clk 0:02:06]}  Nxd3+ {[%clk 0:02:10]} 15. Rxd3 {[%clk 0:02:06]}  b4 {[%clk 0:02:06]} 16. Na4 {[%clk 0:02:02]}  a5 {[%clk 0:02:04]} 17. Rg3 {[%clk 0:01:58]}  Rg8 {[%clk 0:02:04]} 18. Qf4 {[%clk 0:01:33]}  Ba6 {[%clk 0:02:02]} 19. Nh4 {[%clk 0:01:28]}  Bxd3 {[%clk 0:02:00]} 20. cxd3 {[%clk 0:01:22]}  Ke8 {[%clk 0:01:39]} 21. d4 {[%clk 0:01:20]}  Rc8 {[%clk 0:01:36]} 22. Kb1 {[%clk 0:01:17]}  Qc7 {[%clk 0:01:26]} 23. Nc5 {[%clk 0:01:13]}  Nxd4 {[%clk 0:01:22]} 24. Qxd4 {[%clk 0:00:58]}  Qxc5 {[%clk 0:01:19]} 25. Qxc5 {[%clk 0:00:58]}  Rxc5 {[%clk 0:01:20]} 26. Rf3 {[%clk 0:00:50]}  Ke7 {[%clk 0:01:19]} 27. Re3 {[%clk 0:00:48]}  Rgc8 {[%clk 0:01:19]} 28. Re1 {[%clk 0:00:48]}  Rc2 {[%clk 0:01:15]} 29. Nf3 {[%clk 0:00:49]}  Rxf2 {[%clk 0:01:14]} 30. Nd4 {[%clk 0:00:49]}  Rc4 {[%clk 0:01:10]} 31. Nb3 {[%clk 0:00:47]}  a4 {[%clk 0:01:09]} 32. Na5 {[%clk 0:00:48]}  Rcc2 {[%clk 0:01:08]} 33. Ka1 {[%clk 0:00:46]}  Rxb2 {[%clk 0:01:07]} 34. g4 {[%clk 0:00:46]}  Rxa2+ {[%clk 0:01:06]} 35. Kb1 {[%clk 0:00:46]}  a3 {[%clk 0:01:03]} 36. Nb3 {[%clk 0:00:44]}  Rfb2+ {[%clk 0:01:04]} 37. Kc1 {[%clk 0:00:43]}  Rxb3 {[%clk 0:01:04]} 38. g5 {[%clk 0:00:37]}  Rbb2 {[%clk 0:01:04]} 0-1


[Site "https://www.chess.com"]

[Event "Titled Tuesday Blitz May 9 Late 2023"]
[White "Papasimakopoulos, Alexandros"]
[Black "Gerbelli Neto, Eduardo"]
[WhiteFideId "4244125"]
[BlackFideId "2103281"]
[WhiteElo "2359"]
[BlackElo "2178"]
[Result "1-0"]
[Round "01"]
[TimeControl "180+2"]
[Date "2023.05.09"]
[WhiteClock "0:00:29"]
[BlackClock "0:00:32"]

1. d4 {[%clk 0:02:53]}  d5 {[%clk 0:02:59]} 2. c4 {[%clk 0:02:52]}  c6 {[%clk 0:02:59]} 3. cxd5 {[%clk 0:02:52]}  cxd5 {[%clk 0:02:58]} 4. Bf4 {[%clk 0:02:52]}  Nf6 {[%clk 0:02:59]} 5. Nc3 {[%clk 0:02:52]}  Nc6 {[%clk 0:02:59]} 6. e3 {[%clk 0:02:51]}  e6 {[%clk 0:02:58]} 7. Bd3 {[%clk 0:02:51]}  Bd6 {[%clk 0:02:56]} 8. Bxd6 {[%clk 0:02:51]}  Qxd6 {[%clk 0:02:57]} 9. f4 {[%clk 0:02:52]}  Bd7 {[%clk 0:02:47]} 10. Nf3 {[%clk 0:02:52]}  O-O {[%clk 0:02:37]} 11. Ne5 {[%clk 0:02:50]}  Rac8 {[%clk 0:02:33]} 12. O-O {[%clk 0:02:50]}  Ne7 {[%clk 0:02:31]} 13. g4 {[%clk 0:02:48]}  Bc6 {[%clk 0:02:28]} 14. Qf3 {[%clk 0:02:47]}  g6 {[%clk 0:02:25]} 15. h4 {[%clk 0:02:42]}  a6 {[%clk 0:02:07]} 16. h5 {[%clk 0:02:42]}  b5 {[%clk 0:02:07]} 17. hxg6 {[%clk 0:02:38]}  fxg6 {[%clk 0:02:04]} 18. a3 {[%clk 0:02:32]}  Rc7 {[%clk 0:01:54]} 19. Rf2 {[%clk 0:02:16]}  a5 {[%clk 0:01:47]} 20. Bxb5 {[%clk 0:01:59]}  Ne4 {[%clk 0:01:44]} 21. Nxc6 {[%clk 0:01:45]}  Nxc6 {[%clk 0:01:42]} 22. Nxe4 {[%clk 0:01:43]}  dxe4 {[%clk 0:01:41]} 23. Qxe4 {[%clk 0:01:42]}  Ne7 {[%clk 0:01:36]} 24. b3 {[%clk 0:01:33]}  Nd5 {[%clk 0:01:36]} 25. Bc4 {[%clk 0:01:32]}  a4 {[%clk 0:01:19]} 26. Qe5 {[%clk 0:01:25]}  Qxe5 {[%clk 0:01:11]} 27. fxe5 {[%clk 0:01:26]}  Nxe3 {[%clk 0:01:07]} 28. Bxe6+ {[%clk 0:01:25]}  Kg7 {[%clk 0:01:08]} 29. Rxf8 {[%clk 0:01:17]}  Kxf8 {[%clk 0:01:09]} 30. Re1 {[%clk 0:01:16]}  Nc2 {[%clk 0:01:06]} 31. Rc1 {[%clk 0:01:13]}  Ke7 {[%clk 0:00:59]} 32. Bd5 {[%clk 0:01:13]}  Rc3 {[%clk 0:00:57]} 33. bxa4 {[%clk 0:01:09]}  Nxd4 {[%clk 0:00:56]} 34. Rxc3 {[%clk 0:01:08]}  Ne2+ {[%clk 0:00:56]} 35. Kf2 {[%clk 0:01:06]}  Nxc3 {[%clk 0:00:57]} 36. Bb3 {[%clk 0:01:05]}  h5 {[%clk 0:00:55]} 37. g5 {[%clk 0:00:38]}  Ne4+ {[%clk 0:00:54]} 38. Ke3 {[%clk 0:00:38]}  Nc5 {[%clk 0:00:53]} 39. Bc2 {[%clk 0:00:32]}  Ke6 {[%clk 0:00:50]} 40. Bxg6 {[%clk 0:00:32]}  Kxe5 {[%clk 0:00:48]} 41. Bxh5 {[%clk 0:00:31]}  Kf5 {[%clk 0:00:43]} 42. g6 {[%clk 0:00:31]}  Kf6 {[%clk 0:00:42]} 43. a5 {[%clk 0:00:31]}  Na4 {[%clk 0:00:42]} 44. a6 {[%clk 0:00:30]}  Nb6 {[%clk 0:00:41]} 45. a7 {[%clk 0:00:30]}  Na8 {[%clk 0:00:32]} 46. Kd4 {[%clk 0:00:29]} 1-0


[Site "https://www.chess.com"]